Cogmind - Beta 13 @@@ ROGUE MODE // 2024.07.08 @ 12:59:06 Player: Azormik Result: Destroyed by Y-45 Defender with Heavy Assault Rifle Performance ------------- Evolutions (1) 500 Regions Visited (3) 600 Robots Destroyed (26) 130 Value Destroyed (618) 618 Prototype IDs (1) 20 Alien Tech Used (0) 0 Bonus (0) 0 TOTAL SCORE: 1868 Bonus ------- None Cogmind --------- Core Integrity 0/400 Matter 300/300 Energy 53/100 System Corruption 2% Temperature Warm (167) Movement Core (50) Location -9/Materials Parts ------- > --- POWER (1) -------- (None) > --- PROPULSION (2) --- (None) > --- UTILITY (4) ------ (None) > --- WEAPON (2) ------- Small Laser > --- INVENTORY (5) ---- Heat Sink Sensor Array Seismic Detector Beam Rifle Peak State ------------ > --- POWER ------------ Light Ion Engine > --- PROPULSION ------- Wheel Compact Wheel > --- UTILITY ---------- Small Storage Unit Seismic Detector Shield Generator Hacking Suite > --- WEAPON ----------- Heavy Assault Rifle Improved Assault Rifle > --- INVENTORY -------- Light Ion Engine Light Ion Engine Wheel Wheel Sensor Array Seismic Detector [Rating: 15] Favorites ----------- Power Light Ion Engine Engine Light Ion Engine Propulsion Compact Wheel Wheel Compact Wheel Utility Small Storage Unit Device Seismic Detector Storage Small Storage Unit Hackware Hacking Suite Protection Light Armor Plating Weapon Medium Laser Energy Gun Medium Laser Ballistic Gun Improved Assault Rifle Build | -11 -10 -10 -9 ------- Run | Yrd Mat Min Mat Slots Evolved 2 | . . . 2 Power . | . . . . Propulsion . | . . . . Utility 2 | . . . 2 Weapon . | . . . . Parts Attached 30 | 7 4 5 14 Power 6 | 1 1 2 2 Engine 6 | 1 1 2 2 Core . | . . . . Reactor . | . . . . Propulsion 10 | 2 1 3 4 Treads . | . . . . Leg . | . . . . Wheel 10 | 2 1 3 4 Hover . | . . . . Flight . | . . . . Utility 7 | 2 1 . 4 Device 4 | 1 . . 3 Storage 1 | 1 . . . Processor . | . . . . Hackware 1 | . 1 . . Protection 1 | . . . 1 Artifact . | . . . . Weapon 7 | 2 1 . 4 Energy Gun 4 | 2 . . 2 Energy Cannon . | . . . . Ballistic Gun 3 | . 1 . 2 Ballistic Cannon . | . . . . Launcher . | . . . . Special Weapon . | . . . . Impact Weapon . | . . . . Slashing Weapon . | . . . . Piercing Weapon . | . . . . Special Melee Weapon . | . . . . Unidentified Prototypes 1 | . . . 1 Parts Lost 20 | . 3 4 13 Power 3 | . 1 . 2 Propulsion 7 | . 1 2 4 Utility 4 | . . . 4 Weapon 6 | . 1 2 3 Highest Loss Streak 8 | . 3 4 8 To Critical Strikes . | . . . . Average Slot Usage (%) 83 | . 95 69 79 Engine 10 | . 10 14 9 Wheel 20 | . 27 16 18 Device 13 | . 6 . 18 Storage 12 | . 14 14 10 Hackware 10 | . 7 14 11 Energy Gun 7 | . 23 4 . Ballistic Gun 7 | . 4 5 9 Naked Turns . | . . . . Heaviest Build 20 | 12 12 11 20 Greatest Support 32 | 32 32 26 26 Greatest Overweight (x) 5 | . . 2 5 Average Overweight (x) . | . . . . Largest Inventory Capacity 8 | 8 8 8 8 Average Capacity 7 | 7 8 8 7 Most Carried 8 | 7 8 6 8 Average Carried 6 | 4 7 5 6 Final Capacity 8 | 8 8 8 5 Final Carried 7 | 7 6 6 4 Class Distribution -------------------- 51% | Mutant 48% | Scavenger-Mutant Dominant Class ---------------- Mutant | -10/Materials Mutant | -10/Mines Scavenger-Mutant | -9/Materials Resources | -11 -10 -10 -9 ----------- Run | Yrd Mat Min Mat Matter Collected 628 | 270 51 34 273 Remotely . | . . . . Salvage Created 926 | 177 229 61 459 Parts 56 | 14 8 4 30 Haulers Intercepted 1 | . . . 1 Recyclers Shooed . | . . . . Parts Field Recycled . | . . . . Retrieved Matter . | . . . . Parts Self-Destructed . | . . . . Prevented . | . . . . Kills | -11 -10 -10 -9 ------- Run | Yrd Mat Min Mat Combat Hostiles Destroyed 13 | . 4 1 8 Guns 12 | . 3 1 8 Classes Destroyed 7 | 1 3 1 2 Worker 1 | . . 1 . Tunneler 8 | 8 . . . Hauler 1 | . . . 1 Operator 1 | . 1 . . Watcher 2 | . 1 . 1 Grunt 10 | . 4 1 5 Sentry 3 | . . . 3 Best Kill Streak 3 | 3 3 1 3 Combat Bots Only 3 | . 3 1 3 Max Kills in Single Turn 1 | 1 1 1 1 Gunslinging . | . . . . Exploded . | . . . . Melee . | . . . . Uniques/NPCs Destroyed . | . . . . Combat | -11 -10 -10 -9 -------- Run | Yrd Mat Min Mat Hostile Shots Fired 190 | . 31 36 123 Missed 43 | . 7 5 31 Damage Taken 1995 | . 299 450 1246 Core 611 | . 100 96 415 Absorbed by Shields 54 | . . . 54 Core Remaining (%) 60 | 100 . 21 . Volleys Fired 109 | 20 32 15 42 Largest 2 | 2 2 2 2 Hottest 105 | 90 90 70 105 Shots Fired 182 | 40 51 23 68 Gun 182 | 40 51 23 68 Cannon . | . . . . Launcher . | . . . . Special . | . . . . Kinetic 88 | . 13 15 60 Thermal 94 | 40 38 8 8 Explosive . | . . . . Electromagnetic . | . . . . Robot Hit Streak 17 | 7 11 6 17 Robot Miss Streak 4 | 2 4 3 2 Penetration Max . | . . . . Secondary Targets 1 | . . . 1 Max Gunslinging Chain 1 | . . . 1 Shots Hit Robots 123 | 25 34 15 49 Core Hits 44 | 8 12 4 20 Critical Kills . | . . . . Critical Parts Destroyed 1 | . . . 1 Critical Strikes 8 | 6 . 1 1 Burn 7 | 6 . 1 . Destroy 1 | . . . 1 Melee Attacks . | . . . . Impact . | . . . . Slashing . | . . . . Piercing . | . . . . Sneak Attacks . | . . . . Combat Hostiles . | . . . . Follow-up Attacks . | . . . . Damage Inflicted 1667 | 298 360 162 847 Guns 1568 | 298 357 147 766 Cannons . | . . . . Explosions 41 | . . . 41 Melee . | . . . . Ramming 58 | . 3 15 40 Kinetic 828 | . 64 73 691 Thermal 740 | 298 293 74 75 Explosive . | . . . . Electromagnetic 41 | . . . 41 Impact . | . . . . Slashing . | . . . . Piercing . | . . . . Highest Corruption 2 | . . 2 2 Average Corruption 2 | . . 2 2 Corruption Purged . | . . . . Corruption Blocked . | . . . . Effects 8 | . . . 8 Message Errors 1 | . . . 1 Heat Flow Errors 3 | . . . 3 Energy Discharges 2 | . . . 2 Parts Rejected 1 | . . . 1 Weapon Failures 1 | . . . 1 Overload Shots . | . . . . Overflow Damage . | . . . . Projectiles . | . . . . Explosions . | . . . . Melee . | . . . . Knockbacks . | . . . . Impact . | . . . . Kinetic . | . . . . Secondary . | . . . . Self-Inflicted Damage 66 | . 1 7 58 Shots 1 | . . . 1 Rammed 21 | . 1 2 18 Targets Rammed 21 | . 1 2 18 Kicked . | . . . . Crushed . | . . . . Highest Temperature 300 | 300 273 258 278 Average Temperature 120 | 95 124 147 128 Received Heat Transfer 1023 | . 162 309 552 Effects 3 | . 3 . . Interference 3 | . 3 . . Siege Activations . | . . . . Robots Corrupted . | . . . . Combat Hostiles . | . . . . Parts Fried . | . . . . Impact Corruptions . | . . . . Robots Melted 1 | . 1 . . Combat Hostiles 1 | . 1 . . Parts Melted 4 | 2 . 2 . Heat Transferred 2464 | 1237 745 296 186 Parts Sabotaged . | . . . . Parts Stolen . | . . . . Parts Stripped . | . . . . Power Chain Reactions . | . . . . Alert | -11 -10 -10 -9 ------- Run | Yrd Mat Min Mat Peak Influence 173 | 40 123 47 173 Initial 47 | . 26 47 18 Average 55 | 17 75 35 62 Maximum Alert Level . | . . . . Low Security (%) 100 | 100 100 100 100 Level 1 . | . . . . Level 2 . | . . . . Level 3 . | . . . . Level 4 . | . . . . Level 5 . | . . . . High Security . | . . . . Max Security . | . . . . Squads Dispatched 4 | . 1 . 3 Investigation 2 | . . . 2 Extermination . | . . . . Reinforcement 2 | . 1 . 1 Assault . | . . . . Garrison . | . . . . Intercept . | . . . . Searches Triggered . | . . . . Construction Impeded . | . . . . Haulers Reinforced . | . . . . Active Scanning Responses . | . . . . Cargo Convoy Interrupts . | . . . . Stealth | -11 -10 -10 -9 --------- Run | Yrd Mat Min Mat Distress Signals 1 | . . . 1 Communications Jammed . | . . . . Distress Signals . | . . . . Times Spotted 29 | . 8 4 17 Peak Tracking Total 4 | . 3 3 4 Tactical Retreats 4 | . . 1 3 Traps | -11 -10 -10 -9 ------- Run | Yrd Mat Min Mat Traps Triggered 1 | . . . 1 Indirectly . | . . . . Trap Hack Attempts . | . . . . Triggered . | . . . . Disarmed . | . . . . Reprogrammed . | . . . . Reused . | . . . . Traps Extracted . | . . . . Installed . | . . . . Triggered . | . . . . Machines | -11 -10 -10 -9 ---------- Run | Yrd Mat Min Mat Machines Disabled 1 | . . . 1 Max in Single Turn 1 | . . . 1 Machines Repaired . | . . . . Machines Dismantled . | . . . . Machines Sabotaged . | . . . . Overloaded Fab Kills . | . . . . Hacking | -11 -10 -10 -9 --------- Run | Yrd Mat Min Mat Machines Accessed 6 | . 3 . 3 Terminals 5 | . 2 . 3 Fabricators . | . . . . Repair Stations . | . . . . Recycling Units 1 | . 1 . . Scanalyzers . | . . . . Garrison Access . | . . . . Total Hacks 12 | . 6 . 6 Successful 4 | . 2 . 2 Failed 8 | . 4 . 4 Catastrophic 2 | . 1 . 1 Database Lockouts . | . . . . Manual 2 | . . . 2 Terminals 10 | . 4 . 6 Fabricators . | . . . . Repair Stations . | . . . . Recycling Units 2 | . 2 . . Scanalyzers . | . . . . Garrison Access . | . . . . Terminal Hacks 2 | . . . 2 Unreport Threat 2 | . . . 2 Fabricator Hacks . | . . . . Repair Station Hacks . | . . . . Recycling Unit Hacks 2 | . 2 . . Report Inventory 1 | . 1 . . Retrieve Components 1 | . 1 . . Scanalyzer . | . . . . Garrison Access Hacks . | . . . . Unauthorized Hacks . | . . . . Terminals . | . . . . Fabricators . | . . . . Repair Stations . | . . . . Recycling Units . | . . . . Scanalyzers . | . . . . Garrison Access . | . . . . Data Cores Recovered . | . . . . Used . | . . . . Hacking Detections 4 | . 2 . 2 Full Trace Events 2 | . 1 . 1 Feedback Events . | . . . . Feedback Blocked . | . . . . Robot Schematics Acquired . | . . . . Robots Built . | . . . . Authchips . | . . . . Time . | . . . . Total Robot Build Rating . | . . . . Part Schematics Acquired . | . . . . Parts Built . | . . . . Authchips . | . . . . Time . | . . . . Total Part Build Rating . | . . . . Parts Repaired . | . . . . Time . | . . . . Parts Recycled . | . . . . Recycled Matter . | . . . . Retrieved Matter . | . . . . Retrieved Components 3 | . 3 . . Parts Scanalyzed . | . . . . Part Schematics Acquired . | . . . . Parts Damaged . | . . . . Bothacking | -11 -10 -10 -9 ------------ Run | Yrd Mat Min Mat Used RIF Installer . | . . . . Robots Hacked . | . . . . Non-combat . | . . . . Combat . | . . . . Robot Hacks Applied . | . . . . Relay Couplers Released . | . . . . Fabnet Peak Effective % . | . . . . Robots Rewired . | . . . . Allies Hacked . | . . . . Hacks Repelled . | . . . . Allies | -11 -10 -10 -9 -------- Run | Yrd Mat Min Mat Total Allies . | . . . . Largest Group . | . . . . Highest-Rated Group . | . . . . Highest-Rated Ally . | . . . . Total Orders . | . . . . Ally Attacks . | . . . . Total Damage . | . . . . Kills . | . . . . Allies Corrupted . | . . . . Allies Melted . | . . . . Intel | -11 -10 -10 -9 ------- Run | Yrd Mat Min Mat Robot Analysis Total . | . . . . Derelict Logs Recovered . | . . . . Drone Launches . | . . . . Drone Recoveries . | . . . . Exploration | -11 -10 -10 -9 ------------- Run | Yrd Mat Min Mat Turns Passed 1465 | 267 360 100 738 Spaces Moved 940 | 175 258 65 442 Core 23 | 2 . 6 15 Treads . | . . . . Legs . | . . . . Wheels 917 | 173 258 59 427 Hover . | . . . . Flight . | . . . . Fastest Speed 50 | 50 90 80 80 Average Speed 95 | 99 96 86 94 Slowest Speed 300 | 100 100 150 300 Overloaded Moves . | . . . . Propulsion Burnouts . | . . . . Robots Hopped . | . . . . Cave-ins Triggered . | . . . . Exploration Rate (%) 18 | 7 31 17 20 Regions Visited 3 Branch Regions 1 Pre-discovered Areas . | . . . . Known Exits Taken . | . . . . Unknown Exits Taken 3 | 1 1 1 . Scrap Searched . | . . . . Spaces Dug . | . . . . Terrain Destroyed . | . . . . Melee . | . . . . Projectile . | . . . . AOE . | . . . . Terrain Rammed . | . . . . Walls Destroyed . | . . . . Machines Disabled . | . . . . Actions | -11 -10 -10 -9 --------- Run | Yrd Mat Min Mat Total 1309 | 224 320 86 679 Wait 192 | 16 23 . 153 Move 937 | 174 257 64 442 Hop . | . . . . Pick Up 15 | 7 2 . 6 Fast Attach 14 | 7 1 1 5 Attach 9 | . 2 1 6 Detach . | . . . . Swap 7 | . 1 3 3 Drop 5 | . 1 . 4 Fire 109 | 20 32 15 42 Melee . | . . . . Ram 21 | . 1 2 18 Kick . | . . . . Crush . | . . . . Escape Stasis . | . . . . Rewire . | . . . . Trap . | . . . . Miscellaneous . | . . . . Route ------- -11/Scrapyard -10/Materials -10/Mines -9/Materials History --------- Turn | Location | Event 14 | -11/Scrapyard | Discovered new exit (range 16) 268 | -11/Scrapyard | Entered Materials 307 | -10/Materials | Build established: Mutant 554 | -10/Materials | Lost 3 parts (1p1n1w) 607 | -10/Materials | Discovered new exit (range 16) 628 | -10/Materials | Entered Mines 637 | -10/Mines | Core integrity fell below 50% 700 | -10/Mines | Lost 4 parts (2n2w) 719 | -10/Mines | Discovered new exit (range 9) 728 | -10/Mines | Entered Materials 728 | -9/Materials | Evolved 2 slots: Utility x2 1013 | -9/Materials | Build established: Scavenger-Mutant 1305 | -9/Materials | Lost 3 parts (1p1n1u) 1411 | -9/Materials | Core integrity fell below 50% 1435 | -9/Materials | Core integrity fell below 20% 1466 | -9/Materials | Destroyed by Y-45 Defender with Heavy Assault Rifle Last Messages --------------- Slammed into Y-45 Defender. Wheel broken. Destabilizing: Short circuit. Slammed into Y-45 Defender. Hvy. Assault Rifle broken. Destabilizing: Short circuit. Broken Wheel destroyed. Slammed into Y-45 Defender. Imp. Ion Engine broken. Destabilizing: Short circuit. Slammed into Y-45 Defender. Destabilizing: System interference. Heat Sink temporarily disabled. Broken Hvy. Assault Rifle destroyed. System corrupted: Seismic Detector rejected. Broken Imp. Ion Engine destroyed. Sml. Storage Unit destroyed. Hacking Suite destroyed. Heat Sink destroyed. Particle Gun destroyed. Map ----- +----------------------------------------------------+ | | | | | | | | | | | | | | | | | ??????????????????????????????? | | ??????????????????????????????? | | ??????????????????????????????? | | ??????????????????????????????? | | ???############################ | | ???#%%%%%%% | | ???#%#################/######## | | ???#%#??????????# #???? | | ???#%#??????????# ##### | | ???#%#??????????# # # | | ???#%#??????????# / # | | ???# #??????????# # # | | ???# #??????????# # # | | ???# #??????????# # # | | ???# #??????????# # # | | ?###g#####??????########### # | | ?# ggY # #????????????# # | | ?# @ k/ +????????????# | | ?# "T" # #????????????# | | ?# """ #????????????????# | | ?# #????????????????# | | ?#########????????????????# | | ?????????????????????????## | | ?????????????????????????# | | ?????????????????????????# | | ?????????????????????????# | | ?????????????????????????# | | ?????????????????????????# | | ????????????????????????####+## | | ????????????????????????# =% % | | ????????????????????????# *=! ! | | ????????????????????????# | | ????????????????????????# ! | | ????????????????????????# [ | | ???????????????????????##! / | | ???????????????????????# " | | ???????????????????????## S" | | ????????????????????????# "" | | ????????????????????????####### | | ??????????????????????????????? | | ??????????????????????????????? | | ??????????????????????????????? | +----------------------------------------------------+ Best States ------------- Heat Dissipation 38 Energy Generation 12 Energy Capacity 265 Matter Stores 300 Matter Capacity 300 Sight Range 16 Terrain Scan Density 10 Armor Coverage 150 Evasion (%) 44 Offensive Hacking 10 Item Schematics ----------------- None Robot Schematics ------------------ None Fabricated ------------ Nothing Alien Tech Used ----------------- None Achievements -------------- None Challenges ------------ None Game ------ Seed LauncherDiametricPick Manual? 0 Play Time 00:21:44 Cumulative 78.3 hours Start 2024.07.08 @ 12:39:07 End 2024.07.08 @ 12:59:06 Sessions 1 Manual Loads 0 Difficulty Rogue Special Mode None Game No. 79 Rogue 70 Adventurer 9 Explorer 0 Win Type - Total 0 Types 0/0/0/0/0/0/0/0/0 Lore% 28 Gallery% 26 Achievement% 23 Wizard Run 0 Options --------- Layout 0 ASCII 1 Keyboard 0 Movement Arrows Keybinds 0 Fullscreen 2 Font 18/SmallcapsGlow Map View 76x50 Zoom Use 0% Tactical HUD 0 Map Filters NONE Filters NONE Steam 1 RUN: fbae5a97-e003-408c-aa07-be8a7cea2c37